Workbook

Sheet алиша
B3: УТВЕРЖДЕНО
B4: Начальник Управления образования Исполнительного комитета муниципального образования города Казани
B7: ________________________И.А.Ризванов
B8: (подпись)
B10: СМЕТА
B11: доходов и расходов, по средствам, полученным от предпринимательской и иной приносящей доход деятельности на 2024 год
A14: Учреждение | B14: МБУДО "Городской дворец детского творчества имени А.Алиша" Вахитовского района г.Казани
A15: Адрес
A16: Периодичность: годовая
A17: Индивидуальная (общая)
A18: Министерство, ведомство | B18: 821
A19: Раздел, подраздел | B19: 0703
A20: Целевая статья | B20: 0230142310
A21: Вид расходов | B21: 111,112,113,119,244,853,852,247
A22: Доп.КР | B22: 591,593,521,523,509,592,522
A23: Доп.ФК
A24: Единица измерения: | B24: руб.
A27: Наименование статьи | D27: Сумма
A28: 1.ДОХОДЫ
A29: Остаток средств на начало года | B29: Код дохода | D29: =SUM(D30:I38) -> 222,275.65
A30: Доходы, от операционной аренды | B30: 82100000000000000121 | D30: 2,244.31
A31: Доходы от оказания платных услуг | B31: 82100000000000000131 | D31: 200,955.41
A32: Доходы от оказания платных услуг (целевые платные согл пост№705 от 21.09.17) питание сотрудников | B32: 82100000000000006131
A33: Доходы от оказания услуг - родплата пришкольные лагеря | B33: 82100000000000004131
A34: Доходы от компенсации затрат | B34: 82100000000000000134
A35: Доходы по условным арендным платежам (от компенсации затрат на коммунальные услуги) | B35: 82100000000000000135 | D35: 19,075.93
A36: Доход от возмещения ФСС расходов | B36: 82100000000000000139
A37: Доходы от сдачи металлолома, макулатуры, числившихся на балансе | B37: 82100000000000000440
A38: Иные доходы (гранты, добровольные пожертвования) | B38: 82100000000000000155
A39: Поступления текущего года | D39: =SUM(D40:I46) -> 500,000.00
A40: Доходы, от операционной аренды | B40: 82100000000000000121
A41: Доходы от оказания платных услуг | B41: 82100000000000000131 | D41: 500,000.00
A42: Доходы от оказания платных услуг (целевые платные согл пост№705 от 21.09.17) питание сотрудников | B42: 82100000000000006131
A43: Доходы от оказания услуг - родплата пришкольные лагеря | B43: 82100000000000004131
A44: Доходы от компенсации затрат (охрана) | B44: 82100000000000000134
A45: Доходы по условным арендным платежам (от компенсации затрат на коммунальные услуги) | B45: 82100000000000000135
A46: Иные доходы (гранты, добровольные пожертвования) | B46: 82100000000000000155
A47: Всего доходов | D47: =D39+D29 -> 722,275.65
D48: Доп КР
A49: 2. РАСХОДЫ | B49: КОСГУ, ДопЭК | C49: Сумма итого | D49: 509 | E49: 591 | F49: 592 | G49: 593 | H49: 595 | I49: 521 | J49: 522 | K49: 523
A50: Заработная плата | B50: 211 | C50: =SUM(D50:K50) -> 442,362.06 | D50: =SUM(D51:D52) -> 154,343.63 | E50: =SUM(E51:E52) -> 0.00 | F50: =SUM(F51:F52) -> 0.00 | G50: 0.00 | H50: 0.00 | I50: =SUM(I51:I52) -> 288,018.43 | J50: 0.00 | K50: 0.00
A51: - заработная плата педагогического персонала | B51: П211004 | C51: =SUM(D51:K51) -> 402,635.38 | D51: 154,343.63 | I51: 248,291.75
A52: - заработная плата вспомогательного персонала | B52: П211005 | C52: 39,726.68 | I52: 39,726.68
A53: Прочие выплаты | B53: 212 | C53: 0.00 | D53: =SUM(D54:D54) -> 0.00 | E53: =SUM(E54:E54) -> 0.00 | F53: =SUM(F54:F54) -> 0.00 | G53: 0.00 | H53: 0.00 | I53: =SUM(I54) -> 0.00 | J53: 0.00 | K53: 0.00
A54: - суточные работникам (сотрудникам) при служебных командировках (кроме водителей) | B54: П212006 | C54: 0.00
A55: Начисления на выплаты по заработной плате | B55: 213 | C55: 133,593.35 | D55: =SUM(D56:D57) -> 46,611.78 | E55: =SUM(E56:E57) -> 0.00 | F55: =SUM(F56:F57) -> 0.00 | G55: 0.00 | H55: 0.00 | I55: =SUM(I56:I57) -> 86,981.57 | J55: 0.00 | K55: 0.00
A56: - начисления на заработную плату педагогического персонала | B56: П213004 | C56: 121,595.89 | D56: 46,611.78 | I56: =ROUND(I51*0.302,2) -> 74,984.11
A57: - начисления на заработную плату вспомогательного персонала | B57: П213005 | C57: 11,997.46 | I57: =ROUND(I52*0.302,2) -> 11,997.46
A58: Услуги связи | B58: 221 | C58: 0.00 | D58: =SUM(D59:D63) -> 0.00 | E58: =SUM(E59:E63) -> 0.00 | F58: =SUM(F59:F63) -> 0.00 | G58: 0.00 | H58: 0.00 | I58: =SUM(I59:I63) -> 0.00 | J58: 0.00 | K58: 0.00
A59: -услуги телефонной связи | B59: П221001 | C59: 0.00
A60: -плата за предоставление доступа к телефонной связи и Интернет(разовый) | B60: П221002 | C60: 0.00
A61: -услуги сотовой связи связи | B61: П221010 | C61: 0.00
A62: -плата за услуги сети Интернет | B62: П221012 | C62: 0.00
A63: -прочие услуги связи (радио, а/я) | B63: П221099 | C63: 0.00
A64: Транспортные услуги | B64: 222 | C64: 0.00 | D64: =SUM(D65:D66) -> 0.00 | E64: 0.00 | F64: 0.00 | G64: 0.00 | H64: 0.00 | I64: =SUM(I65:I66) -> 0.00 | J64: 0.00 | K64: 0.00
A65: - услуги сторонних организаций для оплаты расходов по проезду при служеб.командировках сотрудников | B65: П222004 | C65: 0.00
A66: - прочие транспортные услуги | B66: П222099 | C66: 0.00
A67: Коммунальные услуги | B67: 223 | C67: 26,400.93 | D67: =SUM(D68:D73) -> 0.00 | E67: =SUM(E68:E73) -> 0.00 | F67: =SUM(F68:F73) -> 0.00 | G67: 19,075.93 | H67: 0.00 | I67: =SUM(I68:I73) -> 7,325.00 | J67: 0.00 | K67: 0.00
A68: - электроснабжение | B68: П223001 | C68: 16,550.00 | G68: 10,000.00 | I68: 6,550.00
A69: - теплоснабжение | B69: П223002 | C69: 5,000.00 | G69: 5,000.00
A70: - гасоснабжение | B70: П223003 | C70: 0.00
A71: - водоснабжение | B71: П223004 | C71: 4,850.93 | G71: 4,075.93 | I71: 775.00
A72: - оплата договоров на вывоз твердых коммунальных отходов с региональным оператором | B72: П223017 | C72: 0.00
A73: -прочие расход по коммунальным услугам, не включенные в вышеуказанные ДЭК | B73: П223099 | C73: 0.00
A74: Арендная плата за пользование имуществом | B74: 224 | C74: 0.00 | D74: =SUM(D75:D77) -> 0.00 | E74: =SUM(E75:E77) -> 0.00 | F74: =SUM(F75:F77) -> 0.00 | G74: 0.00 | H74: 0.00 | I74: 0.00 | J74: 0.00 | K74: 0.00
A75: - Аренда помещений | B75: П224001 | C75: 0.00
A76: -аренда транспорта, оборудования | B76: П224002 | C76: 0.00
A77: - прочие расходы по арендной лате за пользование имуществом | B77: П224099 | C77: 0.00
A78: Работы, услуги по содержанию имущества | B78: 225 | C78: 17,675.00 | D78: =SUM(D79:D98) -> 0.00 | E78: =SUM(E79:E98) -> 0.00 | F78: =SUM(F79:F98) -> 0.00 | G78: 0.00 | H78: 0.00 | I78: 17,675.00 | J78: 0.00 | K78: 0.00
A79: - обслуживание охранной и пожарной сигнализации | B79: П225001 | C79: 0.00
A80: - содержание в чистоте помещений, зданий, дворов, иного имущества (озеленение, уборка и вывоз снега ,мусора, отходов, утилизация мусора (ТБО), дератизация, дезинфекция, дезинсекция, газация, санитарно-гигиеническое обслуживание, мойка и чистка (химчистка) | B80: П225002 | C80: 0.00
A81: - проведение работ по ремонту и восстановлению эффективности функционирования коммунальных инженерных систем и коммуникаций, осуществляемые сверх регламентированного условиями поставки коммунальных услуг перечня работ (технологических нужд) | B81: П225003 | C81: 0.00
A82: - обеспечение функционирования и поддержки (восстановление) работоспособности объектов нефинансовых активов | B82: П225004 | C82: 0.00
A83: - зарплата внештатных сотрудников | B83: П225005 | C83: 0.00
A84: - текущий ремонт зданий, сооружений | B84: Н225007 | C84: 0.00
A85: - ТО и ремонт аппаратного обеспечения (оргтехника, мед.оборудования, комп.техника и т.д.), включающее контроль тех.состояния | B85: П225010 | C85: 17,675.00 | I85: 17,675.00
A86: - тех обслуживание транспортных средств | B86: П225011 | C86: 0.00
A87: - ремонт транспортных средств | B87: П225012 | C87: 0.00
A88: - тех осмотр транспортных средств | B88: П225013 | C88: 0.00
A89: - содержание трансп.средств (мойка и тд) | B89: П225014 | C89: 0.00
A90: - расходы на ТО и ремонт оборудования (торговое, кухонное, офисное, лифты и т.п.) | B90: П225015 | C90: 0.00
A91: - содержание в чистоте имущества, кроме недвижимого | B91: П225016 | C91: 0.00
A92: - ТО приборов учета | B92: П225035 | C92: 0.00
A93: - противопожарные мероприятия (огнезащитная обработка чердачных перекрытий, замеры сопротивления изоляции, зарядка огнетушителей, опрессовка проводов) | B93: П225036 | C93: 0.00
A94: - содержание и ремонт объектов озеленения | B94: П225037 | C94: 0.00
A95: -расходы по валке и обрезке зеленных насаждений в муниципальных учреждениях образования | B95: П225040 | C95: 0.00
A96: -вывоз мусора ТКО для учреждений СКС | B96: П225050 | C96: 0.00
A97: - прочие первоочередные расходы по работам, услугам по содержанию имущества | B97: П225098 | C97: 0.00
A98: - прочие работы, услуги по содержанию имущества | B98: Н225099 | C98: 0.00
A99: Прочие работы, услуги | B99: 226 | C99: 10,000.00 | D99: =SUM(D100:D121) -> 0.00 | E99: =SUM(E100:E121) -> 0.00 | F99: =SUM(F100:F121) -> 0.00 | G99: 0.00 | H99: 0.00 | I99: =SUM(I100:I121) -> 10,000.00 | J99: 0.00 | K99: 0.00
A100: - подписка | B100: П226001 | C100: 0.00
A101: - зарплата внештатных сотрудников | B101: П226002 | C101: 0.00
A102: - организация питания | B102: П226003 | C102: 0.00
A103: -приобретение неисключительных прав на программное обеспечение | B103: П226010 | C103: 0.00
A104: -приобретение и обновление справочно-информационных баз данных (Гарант, Консультант и др) | B104: П226013 | C104: 0.00
A105: - прочие расходы в области информационно-коммуникационных технологий в тч разработка программного обеспечения … | B105: П226015 | C105: 0.00
A106: - расходы в области информационно-коммуникационных технологий в тч разработка программного обеспечения, приобретения искл.прав… | B106: Н226016 | C106: 0.00
A107: -разработка схем территориального планирования, планировка территорий | B107: Н226019 | C107: 0.00
A108: - типографские работы, услуги | B108: Н226022 | C108: 0.00
A109: - размещение объявлений, рекламы в СМИ, расходы на теле-радиопрограммы | B109: Н226023 | C109: 0.00
A110: - возмещение расходов и оплата по проживанию в жилых помещениях (найм жилого помещения) при служебных командировках | B110: П226024 | C110: 0.00
A111: - услуги адвокатов, нотариусов, переводчиков, экспертов, инкассаторов | B111: П226025 | C111: 0.00
A112: - проведение инвентаризации, паспортизации основных средств | B112: П226027 | C112: 0.00
A113: -оплата медосмотров | B113: П226031 | C113: 0.00
A114: -услуги по предоставлению во временное пользование мягкого инветаря и спец одежды | B114: П226037 | C114: 0.00
A115: -возмещение работникам расходов по проезду при служебных командировках | B115: П226042 | C115: 0.00
A116: -компенсация расходов на проживание в жилых помещениях спортсменам и студентам при направлении их на различного рода мероприятия | B116: П226043 | C116: 0.00
A117: -компенсация расходов по проезду спортсменам и студентам при направлении их на различного рода мероприятия | B117: П226044 | C117: 0.00
A118: - услуги охраны образовательных учредений ЧОП | B118: П226050 | C118: =SUM(D118:K118) -> 0.00
A119: - за участие в семинарах, совещаниях, конференциях, курсах повышения квалификации, проф. обучение, за образовательные услуги, организация и проведение совещаний, конкурсов, олимпиад, выставок, мероприятий, конференций, соревнований, экскурсий | B119: П226052 | C119: 10,000.00 | I119: 10,000.00
A120: - прочие первоочередные расходы по прочим работам, услуам | B120: П226098 | C120: 0.00
A121: - прочие работы, услуги | B121: Н226099 | C121: 0.00
A122: Страхование | B122: 227 | C122: 0.00 | D122: =SUM(D123:D124) -> 0.00 | E122: =SUM(E123:E124) -> 0.00 | F122: =SUM(F123:F124) -> 0.00 | G122: 0.00 | H122: 0.00 | I122: 0.00 | J122: 0.00 | K122: 0.00
A123: -услуги по страхованию (за искл.ОСАГО, КАСКО) | B123: П227001 | C123: 0.00
A124: -услуги по страхованию транспорных средств (ОСАГО, КАСКО) | B124: П227002 | C124: 0.00
A125: Услуги, работы для целей капитальных вложений | B125: 228 | C125: 0.00 | D125: =SUM(D126:D127) -> 0.00 | E125: =SUM(E126:E127) -> 0.00 | F125: =SUM(F126:F127) -> 0.00 | G125: 0.00 | H125: 0.00 | I125: 0.00 | J125: 0.00 | K125: 0.00
A126: - установка и монтаж локальных вычислительных сетей, систем охранной и пожарной сигнализации, видеонаблюдения, контроля доступа | B126: П228005 | C126: 0.00
A127: - монтажные и пуско-наладочные работы поставляемых технических средств в области информационно-коммуникационных технологий | B127: Н228016 | C127: 0.00
A128: Социальные пособия и компенсация персоналу в денежном виде | B128: 266 | C128: 0.00 | D128: =SUM(D129) -> 0.00 | E128: =SUM(E129) -> 0.00 | F128: =SUM(F129) -> 0.00 | G128: 0.00 | H128: 0.00 | I128: 0.00 | J128: 0.00 | K128: 0.00
A129: - прочие пособия | B129: П266099 | C129: 0.00
A130: Налоги, пошлины и сборы | B130: 291 | C130: 0.00 | D130: =SUM(D131:D133) -> 0.00 | E130: =SUM(E131:E133) -> 0.00 | F130: =SUM(F131:F133) -> 0.00 | G130: 0.00 | H130: 0.00 | I130: =SUM(I131:I133) -> 0.00 | J130: 0.00 | K130: 0.00
A131: - прочие налоги, в т.ч.госпошлины (за исключением налогов по школьным автобусам) | B131: П291005 | C131: 0.00
A132: -транспортный налог | B132: П291015 | C132: 0.00
A133: -налог по УСН | B133: П291025 | C133: 0.00
A134: Штрафы за нарушение законодательства о налогах и сборах, законодательства о страховых взносах | B134: 292 | C134: 0.00 | D134: =SUM(D135) -> 0.00 | E134: =SUM(E135) -> 0.00 | F134: =SUM(F135) -> 0.00 | G134: 0.00 | H134: 0.00 | I134: =SUM(I135) -> 0.00 | J134: 0.00 | K134: 0.00
A135: - штрафы, пени и другие экономические санкции | B135: П292003 | C135: 0.00
A136: Другие экономические санкции | B136: 295 | C136: 0.00 | D136: =SUM(D137:D137) -> 0.00 | E136: =SUM(E137:E137) -> 0.00 | F136: =SUM(F137:F137) -> 0.00 | G136: 0.00 | H136: 0.00 | I136: =SUM(I137) -> 0.00 | J136: 0.00 | K136: 0.00
A137: - штрафы, пени и другие экономические санкции | B137: П295003 | C137: 0.00
A138: Увеличение стоимости основных средств | B138: 310 | C138: 0.00 | D138: =SUM(D139:D143) -> 0.00 | E138: =SUM(E139:E143) -> 0.00 | F138: =SUM(F139:F143) -> 0.00 | G138: 0.00 | H138: 0.00 | I138: =SUM(I139:I143) -> 0.00 | J138: 0.00 | K138: 0.00
A139: - приобретение огнетушителей | B139: П310001 | C139: 0.00
A140: -приобретение автоматизированных рабочих мест, серверного и тп оборудования | B140: Н310004 | C140: 0.00
A141: - приобретение учебников для общеобразовательных учредений | B141: П310010 | C141: 0.00
A142: -прочие первоочередные расходы по увеличению стоимости основных средств | B142: П310098 | C142: 0.00
A143: -прочие расходы по увеличению стоимости основных средств | B143: Н310099 | C143: 0.00
A144: Увеличение стоимости лекартсвенных препаратов и материалов, применяемых в медицинских целях | B144: 341 | C144: 0.00 | D144: =SUM(D145) -> 0.00 | E144: 0.00 | F144: 0.00 | G144: 0.00 | H144: 0.00 | I144: =SUM(I145) -> 0.00 | J144: 0.00 | K144: 0.00
A145: -закупка медикаментов, перевязочных средств (расходных материалов) | B145: П341006 | C145: 0.00
A146: Увеличение стоимости продуктов питания | B146: 342 | C146: 0.00 | D146: =SUM(D147) -> 0.00 | E146: =SUM(E147) -> 0.00 | F146: =SUM(F147) -> 0.00 | G146: 0.00 | H146: 0.00 | I146: =SUM(I147) -> 0.00 | J146: 0.00 | K146: 0.00
A147: --продукты пиания (за исключением молока и молочных продуктов) | B147: П342005 | C147: 0.00 | I147: =SUM(I149:I150) -> 0.00
A148: Увеличение стоимости ГСМ | B148: 343 | C148: 0.00 | D148: =SUM(D149:D150) -> 0.00 | E148: =SUM(E149:E150) -> 0.00 | F148: =SUM(F149:F150) -> 0.00 | G148: 0.00 | H148: 0.00 | I148: 0.00 | J148: 0.00 | K148: 0.00
A149: - ГСМ | B149: П343001 | C149: 0.00
A150: -моторные масла и спец.смазка | B150: П343015 | C150: 0.00
A151: Увеличение стомости строительных материалов | B151: 344 | C151: 0.00 | D151: =SUM(D152:D153) -> 0.00 | E151: =SUM(E152:E153) -> 0.00 | F151: =SUM(F152:F153) -> 0.00 | G151: 0.00 | H151: 0.00 | I151: =SUM(I152:I153) -> 0.00 | J151: 0.00 | K151: 0.00
A152: -прочие первоочередные расходы по увеличению стоимости стройматериалов | B152: П344098 | C152: 0.00
A153: -прочие расходы по увеличению стоимости стройматериалов | B153: Н344099 | C153: 0.00
A154: Увеличение стомости мягкого инвентаря | B154: 345 | C154: 0.00 | D154: =SUM(D155) -> 0.00 | E154: 0.00 | F154: 0.00 | G154: 0.00 | H154: 0.00 | I154: =SUM(I155) -> 0.00 | J154: 0.00 | K154: 0.00
A155: - закупка мягкого инвентаря, одежды, обмундирования | B155: П345002 | C155: 0.00
A156: Увеличение стоимости прочих оборотных запасов (материалов) | B156: 346 | C156: 92,244.31 | D156: =SUM(D157:D163) -> 0.00 | E156: =SUM(E157:E163) -> 0.00 | F156: =SUM(F157:F163) -> 0.00 | G156: 2,244.31 | H156: 0.00 | I156: =SUM(I157:I163) -> 90,000.00 | J156: 0.00 | K156: 0.00
A157: - закупка запчастей к оборудованию | B157: П346003 | C157: 0.00
A158: - закупка материалов, используемых в процессе обучения | B158: П346004 | C158: 0.00
A159: -закупка запчастей к транспортным средствам | B159: П346013 | C159: 0.00
A160: -приобретение автошин | B160: П346014 | C160: 0.00
A161: - приобретение канцелярских, хозтоваров, расходных материалов | B161: П346017 | C161: 92,244.31 | G161: 2,244.31 | I161: 90,000.00
A162: -прочие расходы по увеличению стоимости прочих оборотных запасов | B162: П346098 | C162: 0.00
A163: -прочие расходы по увеличению стоимости прочих оборотных запасов | B163: Н346099 | C163: 0.00
A164: Увеличение стоимости прочих материальных запасов однократного применения | B164: 349 | C164: 0.00 | D164: =SUM(D165:D166) -> 0.00 | E164: =SUM(E165:E166) -> 0.00 | F164: =SUM(F165:F166) -> 0.00 | G164: 0.00 | H164: 0.00 | I164: =SUM(I165:I166) -> 0.00 | J164: 0.00 | K164: 0.00
A165: - расходы по увеличению стоимости прочих материальных запасов однократного применения | B165: П349098 | C165: 0.00
A166: - прочие расходы по увеличению стоимости прочих материальных запасов, применяемых в медицинских целях, однократного применения | B166: Н349099 | C166: 0.00
A167: Всего расходов | C167: 722,275.65 | D167: =D148+D130+D125+D99+D74+D78+D67+D64+D58+D55+D53+D50+D128+D134+D136+D138+D146+D164+D144+D151+D154+D156+D122 -> 200,955.41 | E167: =E148+E130+E125+E99+E74+E78+E67+E64+E58+E55+E53+E50+E128+E134+E136+E138+E146+E164+E144+E151+E154+E156+E122 -> 0.00 | F167: =F148+F130+F125+F99+F74+F78+F67+F64+F58+F55+F53+F50+F128+F134+F136+F138+F146+F164+F144+F151+F154+F156+F122 -> 0.00 | G167: 21,320.24 | H167: 0.00 | I167: =I164+I156+I154+I151+I148+I146+I144+I138+I136+I134+I130+I128+I125+I122+I99+I78+I74+I67+I64+I58+I55+I53+I50 -> 500,000.00 | J167: 0.00 | K167: 0.00
H168: =SUM(D167:H167) -> 222,275.65 | K168: =SUM(I167:K167) -> 500,000.00
A170: И.о. руководителя | C170: А.В. Бабушкина
